fUST/lending_fUST_20240222
["ID","MTS","AMOUNT","RATE_DAILY","PERIOD"]
[314692404,1708531248775,228.549973,0.00018641,2]
[314692411,1708531472977,164.22477025,0.00019463,2]
[314692490,1708531724108,-1228.07046019,0.00019548,2]
[314692491,1708531724138,-1590.19065373,0.00019549,2]
[314692492,1708531724167,-261.67910799,0.0001955,2]
[314692493,1708531724197,-718.94280189,0.00019569,2]
[314692494,1708531724226,-2349.54746484,0.00019589,2]
[314692495,1708531724256,-212.71809828,0.00019596,2]
[314692496,1708531724285,-1608.16849258,0.00019598,2]
[314692497,1708531724314,-178.3945866,0.00019598,2]
[314692498,1708531724345,-1106.54,0.00019687,3]
[314692499,1708531724376,-12147.99,0.00019696,2]
[314692500,1708531724404,-500.0,0.00019696,2]
[314692501,1708531724434,-1210.44,0.00019696,2]
[314692502,1708531724464,-500.0,0.00019696,2]
[314692503,1708531724492,-546.0,0.00019696,2]
[314692504,1708531724524,-500.0,0.00019696,2]
[314692505,1708531724553,-549.77,0.00019697,2]
[314692506,1708531724582,-500.0,0.00019697,2]
[314692507,1708531724612,-500.0,0.00019697,2]
[314692508,1708531724642,-1265.82,0.00019697,2]
[314692509,1708531724671,-500.0,0.00019697,2]
[314692510,1708531724700,-500.0,0.00019697,2]
[314692511,1708531724728,-500.0,0.00019697,2]
[314692512,1708531724759,-500.0,0.00019697,2]
[314692513,1708531724789,-500.0,0.00019697,2]
[314692514,1708531724818,-500.0,0.00019697,2]
[314692515,1708531724848,-500.0,0.00019697,2]
[314692516,1708531724878,-500.0,0.00019697,2]
[314692517,1708531724907,-1213.86,0.00019697,2]
[314692518,1708531724936,-500.0,0.00019697,2]
[314692519,1708531724964,-500.0,0.00019697,2]
[314692520,1708531724995,-500.0,0.00019697,2]
[314692521,1708531725026,-317.56907617,0.00019697,2]
[314692522,1708531725194,-500.0,0.00019697,2]
[314692523,1708531725224,-1588.89,0.00019697,2]
[314692524,1708531725252,-407.50005023,0.00019697,2]
[314692525,1708531725280,-883.69,0.00019697,2]
[314692526,1708531725309,-500.0,0.00019697,2]
[314692527,1708531725338,-500.0,0.00019697,2]
[314692528,1708531725367,-500.0,0.00019697,2]
[314692529,1708531725399,-9628.23,0.00019697,2]
[314692530,1708531725429,-500.0,0.00019697,2]
[314692531,1708531725459,-500.0,0.00019697,2]
[314692532,1708531725488,-500.0,0.00019697,2]
[314692533,1708531725516,-500.0,0.00019697,2]
[314692534,1708531725545,-500.0,0.00019697,2]
[314692535,1708531725574,-500.0,0.00019697,2]
[314692536,1708531725603,-500.0,0.00019697,2]
[314692537,1708531725632,-500.0,0.00019697,2]
[314692538,1708531725664,-500.0,0.00019697,2]
[314692539,1708531725711,-500.0,0.00019697,2]
[314692540,1708531725744,-500.0,0.00019697,2]
[314692541,1708531725779,-289.09205,0.00019697,2]
[314692542,1708531725814,-289.09205,0.00019697,2]
[314692543,1708531725846,-500.0,0.00019697,2]
[314692544,1708531725877,-500.0,0.00019697,2]
[314692545,1708531725908,-151.0,0.00019697,2]
[314692546,1708531725940,-869.1,0.00019697,2]
[314692547,1708531725972,-719.52,0.00019697,2]
[314692548,1708531726005,-4708.97,0.00019697,2]
[314692549,1708531726037,-3065.88,0.00019697,2]
[314692550,1708531726068,-500.0,0.00019697,2]
[314692551,1708531726098,-500.0,0.00019697,2]
[314692552,1708531726130,-500.0,0.00019697,2]
[314692553,1708531726167,-2221.71,0.00019697,2]
[314692554,1708531726197,-323.5389326,0.00019697,2]
[314692555,1708531726227,-500.0,0.00019697,2]
[314692556,1708531726256,-500.0,0.00019697,2]
[314692557,1708531726286,-500.0,0.00019697,2]
[314692558,1708531726315,-500.0,0.00019697,2]
[314692559,1708531726345,-500.0,0.00019697,2]
[314692560,1708531726375,-847.57,0.00019697,2]
[314692561,1708531726406,-500.0,0.00019697,2]
[314692562,1708531726436,-500.0,0.00019697,2]
[314692563,1708531726465,-500.0,0.00019697,2]
[314692564,1708531726496,-666.49,0.00019697,2]
[314692565,1708531726665,-500.0,0.00019698,2]
[314692566,1708531726695,-500.0,0.00019698,2]
[314692567,1708531726725,-731.09,0.00019698,2]
[314692568,1708531726754,-531.69,0.00019698,2]
[314692569,1708531726784,-500.0,0.00019698,2]
[314692570,1708531726813,-1073.27,0.00019698,2]
[314692571,1708531726843,-501.04178024,0.00019698,2]
[314692572,1708531726872,-500.0,0.00019698,2]
[314692573,1708531726900,-500.0,0.00019698,2]
[314692574,1708531726929,-500.0,0.00019698,2]
[314692575,1708531726958,-500.0,0.00019698,2]
[314692576,1708531726986,-500.0,0.00019698,2]
[314692577,1708531727015,-500.0,0.00019698,2]
[314692578,1708531727043,-500.0,0.00019698,2]
[314692579,1708531727072,-246.46330922,0.00019698,2]
[314692580,1708531727101,-500.0,0.00019698,2]
[314692581,1708531727130,-632.77,0.00019698,2]
[314692582,1708531727162,-500.0,0.00019698,2]
[314692583,1708531727190,-500.0,0.00019698,2]
[314692584,1708531727220,-500.0,0.00019698,2]
[314692585,1708531727249,-874.58,0.00019698,2]
[314692586,1708531727280,-500.0,0.00019698,2]
[314692587,1708531727309,-500.0,0.00019698,2]
[314692588,1708531727339,-500.0,0.00019698,2]
[314692589,1708531727368,-638.31525657,0.00019698,2]
[314692590,1708531727400,-360.71997877,0.00019698,2]
[314692591,1708531727428,-1179.6,0.00019698,2]
[314692592,1708531727457,-256.59234647,0.00019698,2]
[314692593,1708531727486,-151.0,0.00019698,2]
[314692594,1708531727514,-151.0,0.00019698,2]
[314692595,1708531727543,-151.0,0.00019698,2]
[314692596,1708531727572,-500.0,0.00019698,2]
[314692597,1708531727606,-500.0,0.00019698,2]
[314692598,1708531727635,-500.0,0.00019698,2]
[314692599,1708531727664,-500.0,0.00019698,2]
[314692600,1708531727694,-500.0,0.00019698,2]
[314692601,1708531727722,-500.0,0.00019698,2]
[314692602,1708531727751,-500.0,0.00019698,2]
[314692603,1708531727783,-306.24740876,0.00019698,2]
[314692604,1708531727814,-500.0,0.00019698,2]
[314692605,1708531727847,-500.0,0.00019698,2]
[314692606,1708531727875,-713.44,0.00019698,2]
[314692607,1708531727904,-500.0,0.00019698,2]
[314692608,1708531727933,-1082.479918,0.00019698,2]
[314692609,1708531728076,-1082.479918,0.00019698,2]
[314692610,1708531728108,-1082.479918,0.00019698,2]
[314692611,1708531728136,-1082.479918,0.00019698,2]
[314692612,1708531728165,-1082.479918,0.00019698,2]
[314692613,1708531728199,-1082.479918,0.00019698,2]
[314692614,1708531728243,-1082.479918,0.00019698,2]
[314692615,1708531728273,-1082.479918,0.00019698,2]
[314692616,1708531728303,-1082.479918,0.00019698,2]
[314692617,1708531728332,-1082.479918,0.00019698,2]
[314692618,1708531728362,-500.0,0.00019698,2]
[314692619,1708531728392,-500.0,0.00019698,2]
[314692620,1708531728424,-500.0,0.00019698,2]
[314692621,1708531728454,-500.0,0.00019698,2]
[314692622,1708531728484,-1455.17,0.00019698,2]
[314692623,1708531728513,-151.0,0.00019698,2]
[314692624,1708531728542,-151.0,0.00019698,2]
[314692625,1708531728572,-151.0,0.00019698,2]
[314692626,1708531728602,-151.0,0.00019698,2]
[314692627,1708531728630,-151.0,0.00019698,2]
[314692628,1708531728659,-500.0,0.00019698,2]
[314692629,1708531728688,-500.0,0.00019698,2]
[314692630,1708531728718,-500.0,0.00019698,2]
[314692631,1708531728747,-163.54247818,0.00019698,2]
[314692632,1708531728777,-500.0,0.00019698,2]
[314692633,1708531728807,-500.0,0.00019698,2]
[314692634,1708531728836,-500.0,0.00019698,2]
[314692635,1708531728866,-708.58,0.00019698,2]
[314692636,1708531728896,-500.0,0.00019698,2]
[314692637,1708531728925,-1763.95,0.00019698,2]
[314692638,1708531728955,-1524.76,0.00019698,2]
[314692639,1708531728989,-500.0,0.00019698,2]
[314692640,1708531729020,-151.0,0.00019698,2]
[314692641,1708531729053,-151.0,0.00019698,2]
[314692642,1708531729086,-246.076407,0.00019698,2]
[314692643,1708531729117,-598.38,0.00019698,2]
[314692644,1708531729147,-500.0,0.00019698,2]
[314692645,1708531729179,-500.0,0.00019698,2]
[314692646,1708531729211,-151.0,0.00019698,2]
[314692647,1708531729240,-151.0,0.00019698,2]
[314692648,1708531729268,-151.0,0.00019698,2]
[314692649,1708531729298,-151.0,0.00019698,2]
[314692650,1708531729328,-155.164066,0.00019698,2]
[314692651,1708531729356,-500.0,0.00019698,2]
[314692652,1708531729499,-500.0,0.00019698,2]
[314692653,1708531729529,-1741.42,0.00019698,2]
[314692654,1708531729558,-2849.21,0.00019698,2]
[314692655,1708531729586,-500.0,0.00019698,2]
[314692656,1708531729615,-500.0,0.00019698,2]
[314692657,1708531729645,-500.0,0.00019698,2]
[314692658,1708531729673,-500.0,0.00019698,2]
[314692659,1708531729702,-289.09205,0.00019698,2]
[314692660,1708531729730,-289.09205,0.00019698,2]
[314692661,1708531729759,-289.09205,0.00019698,2]
[314692662,1708531729789,-289.09205,0.00019698,2]
[314692663,1708531729828,-289.09205,0.00019698,2]
[314692664,1708531729869,-289.09205,0.00019698,2]
[314692665,1708531729904,-500.0,0.00019698,2]
[314692666,1708531729937,-289.09205,0.00019698,2]
[314692667,1708531729971,-289.09205,0.00019698,2]
[314692668,1708531730003,-289.09205,0.00019698,2]
[314692669,1708531730035,-289.09205,0.00019698,2]
[314692670,1708531730069,-289.09205,0.00019698,2]
[314692671,1708531730102,-289.09205,0.00019698,2]
[314692672,1708531730134,-289.09205,0.00019698,2]
[314692673,1708531730166,-289.09205,0.00019698,2]
[314692674,1708531730198,-289.09205,0.00019698,2]
[314692675,1708531730230,-289.09205,0.00019698,2]
[314692676,1708531730261,-289.09205,0.00019698,2]
[314692677,1708531730291,-289.09205,0.00019698,2]
[314692678,1708531730323,-1000.0,0.00019698,2]
[314692679,1708531730354,-500.0,0.00019698,2]
[314692680,1708531730386,-3111.11,0.00019698,2]
[314692681,1708531730416,-7974.95,0.00019698,2]
[314692682,1708531730446,-500.0,0.00019698,2]
[314692683,1708531730477,-500.0,0.00019698,2]
[314692684,1708531730508,-5424.08,0.00019698,2]
[314692685,1708531730539,-500.0,0.00019698,2]
[314692686,1708531730571,-627.59,0.00019698,2]
[314692687,1708531730602,-500.0,0.00019698,2]
[314692688,1708531730632,-155.20797869,0.00019699,2]
[314692689,1708531730663,-500.0,0.00019699,2]
[314692690,1708531730693,-500.0,0.00019699,2]
[314692691,1708531730723,-500.0,0.00019699,2]
[314692692,1708531730753,-500.0,0.00019699,2]
[314692693,1708531730785,-500.0,0.00019699,2]
[314692694,1708531730816,-151.020121,0.00019699,2]
[314692695,1708531730847,-500.0,0.00019699,2]
[314692696,1708531731019,-500.0,0.00019699,2]
[314692697,1708531731052,-500.0,0.00019699,2]
[314692698,1708531731081,-500.0,0.00019699,2]
[314692699,1708531731113,-254.21358286,0.00019699,2]
[314692700,1708531731144,-500.75462063,0.00019699,2]
[314692701,1708531731182,-500.0,0.00019699,2]
[314692702,1708531731212,-500.0,0.00019699,2]
[314692703,1708531731241,-416.45003183,0.00019699,2]
[314692704,1708531731271,-3100.21,0.00019699,2]
[314692705,1708531731302,-1492.88,0.00019699,2]
[314692706,1708531731332,-3505.61,0.00019699,2]
[314692707,1708531731361,-151.0,0.00019699,2]
[314692708,1708531731391,-275.177926,0.00019699,2]
[314692709,1708531731422,-500.0,0.00019699,2]
[314692710,1708531731453,-500.0,0.00019699,2]
[314692711,1708531731483,-1000.0,0.00019699,2]
[314692712,1708531731513,-500.0,0.00019699,2]
[314692713,1708531731543,-1082.479918,0.00019699,2]
[314692714,1708531731577,-1082.479918,0.00019699,2]
[314692715,1708531731608,-1082.479918,0.00019699,2]
[314692716,1708531731638,-1082.479918,0.00019699,2]
[314692717,1708531731673,-1082.479918,0.00019699,2]
[314692718,1708531731702,-1082.479918,0.00019699,2]
[314692719,1708531731732,-1082.479918,0.00019699,2]
[314692720,1708531731761,-1082.479918,0.00019699,2]
[314692721,1708531731791,-1082.479918,0.00019699,2]
[314692722,1708531731821,-1082.47991,0.00019699,2]
[314692723,1708531731849,-151.0,0.00019699,2]
[314692724,1708531731879,-151.0,0.00019699,2]
[314692725,1708531731908,-151.0,0.00019699,2]
[314692726,1708531731937,-151.0,0.00019699,2]
[314692727,1708531731968,-266.448343,0.00019699,2]
[314692728,1708531731997,-500.0,0.00019699,2]
[314692729,1708531732027,-500.0,0.00019699,2]
[314692730,1708531732059,-500.0,0.00019699,2]
[314692731,1708531732088,-178.39458658,0.00019735,2]
[314692732,1708531732117,-41343.79193059,0.00019774,2]
[314692733,1708531732146,-178.39458658,0.00019872,2]
[314692734,1708531732175,-8225.6370858,0.0001996,2]
[314692735,1708531732204,-155.37048892,0.0001997,2]
[314692736,1708531732237,-12147.99,0.0001997,2]
[314692737,1708531732266,-1210.44,0.0001997,2]
[314692738,1708531732295,-546.0,0.0001997,2]
[314692739,1708531732442,-500.0,0.0001997,2]
[314692740,1708531732473,-2817.83001951,0.00019971,2]
[314692741,1708531732501,-549.77,0.00019971,2]
[314692742,1708531732529,-500.0,0.00019971,2]
[314692743,1708531732559,-500.0,0.00019971,2]
[314692744,1708531732587,-1265.82,0.00019971,2]
[314692745,1708531732616,-500.0,0.00019971,2]
[314692746,1708531732645,-500.0,0.00019971,2]
[314692747,1708531732675,-1213.86,0.00019971,2]
[314692748,1708531732704,-161.55631842,0.00019971,2]
[314692749,1708531732734,-1588.89,0.00019971,2]
[314692750,1708531732764,-883.69,0.00019971,2]
[314692751,1708531732793,-554.70560292,0.00019971,2]
[314692752,1708531732823,-400.0,0.00019971,2]
[314692753,1708531732854,-9628.23,0.00019971,2]
[314692754,1708531732886,-500.0,0.00019971,2]
[314692755,1708531732915,-500.0,0.00019971,2]
[314692756,1708531732946,-500.0,0.00019971,2]
[314692757,1708531732976,-500.0,0.00019971,2]
[314692758,1708531733007,-500.0,0.00019971,2]
[314692759,1708531733038,-500.0,0.00019971,2]
[314692760,1708531733070,-500.0,0.00019971,2]
[314692761,1708531733100,-151.0,0.00019971,2]
[314692762,1708531733130,-869.1,0.00019971,2]
[314692763,1708531733164,-719.52,0.00019971,2]
[314692764,1708531733195,-4708.97,0.00019971,2]
[314692765,1708531733225,-3065.88,0.00019971,2]
[314692766,1708531733256,-500.0,0.00019971,2]
[314692767,1708531733285,-500.0,0.00019971,2]
[314692768,1708531733317,-500.0,0.00019971,2]
[314692769,1708531733347,-2221.71,0.00019971,2]
[314692770,1708531733376,-249.69840039,0.00019971,2]
[314692771,1708531733405,-361.55846587,0.00019971,2]
[314692772,1708531733435,-500.0,0.00019971,2]
[314692773,1708531733467,-731.09,0.00019972,2]
[314692774,1708531733495,-531.69,0.00019972,2]
[314692775,1708531733524,-1073.27,0.00019972,2]
[314692776,1708531733553,-447.43750963,0.00019972,2]
[314692777,1708531733584,-500.0,0.00019972,2]
[314692778,1708531733614,-500.0,0.00019972,2]
[314692779,1708531733644,-500.0,0.00019972,2]
[314692780,1708531733674,-500.0,0.00019972,2]
[314692781,1708531733709,-632.77,0.00019972,2]
[314692782,1708531733738,-500.0,0.00019972,2]
[314692783,1708531733784,-500.0,0.00019972,2]
[314692784,1708531733824,-500.0,0.00019972,2]
[314692785,1708531733864,-874.58,0.00019972,2]
[314692786,1708531733904,-500.0,0.00019972,2]
[314692787,1708531733942,-500.0,0.00019972,2]
[314692788,1708531733979,-500.0,0.00019972,2]
[314692789,1708531734017,-1179.6,0.00019972,2]
[314692790,1708531734056,-500.0,0.00019972,2]
[314692791,1708531734090,-433.1124611,0.00019972,2]
[314692792,1708531734129,-500.0,0.00019972,2]
[314692793,1708531734166,-500.0,0.00019972,2]
[314692794,1708531734205,-500.0,0.00019972,2]
[314692795,1708531734243,-500.0,0.00019972,2]
[314692796,1708531734283,-500.0,0.00019972,2]
[314692797,1708531734318,-500.0,0.00019972,2]
[314692798,1708531734351,-713.44,0.00019972,2]
[314692799,1708531734389,-500.0,0.00019972,2]
[314692800,1708531734424,-500.0,0.00019972,2]
[314692801,1708531734457,-500.0,0.00019972,2]
[314692802,1708531734491,-500.0,0.00019972,2]
[314692803,1708531734526,-1455.17,0.00019972,2]
[314692804,1708531734560,-500.0,0.00019972,2]
[314692805,1708531734595,-500.0,0.00019972,2]
[314692806,1708531734631,-500.0,0.00019972,2]
[314692807,1708531734665,-500.0,0.00019972,2]
[314692808,1708531734699,-500.0,0.00019972,2]
[314692809,1708531734732,-500.0,0.00019972,2]
[314692810,1708531734768,-708.58,0.00019972,2]
[314692811,1708531734805,-500.0,0.00019972,2]
[314692812,1708531734840,-1763.95,0.00019972,2]
[314692813,1708531734875,-1524.76,0.00019972,2]
[314692814,1708531734909,-500.0,0.00019972,2]
[314692815,1708531734944,-598.38,0.00019972,2]
[314692816,1708531734982,-500.0,0.00019972,2]
[314692817,1708531735016,-500.0,0.00019972,2]
[314692818,1708531735052,-500.0,0.00019972,2]
[314692819,1708531735086,-500.0,0.00019972,2]
[314692820,1708531735122,-1741.42,0.00019972,2]
[314692821,1708531735159,-2849.21,0.00019972,2]
[314692822,1708531735193,-500.0,0.00019972,2]
[314692823,1708531735228,-500.0,0.00019972,2]
[314692824,1708531735263,-500.0,0.00019972,2]
[314692827,1708531735559,-500.0,0.00019972,2]
[314692828,1708531735591,-3111.11,0.00019972,2]
[314692829,1708531735622,-7974.95,0.00019972,2]
[314692830,1708531735651,-500.0,0.00019972,2]
[314692831,1708531735680,-500.0,0.00019972,2]
[314692832,1708531735710,-5424.08,0.00019972,2]
[314692833,1708531735739,-627.59,0.00019972,2]
[314692834,1708531735768,-500.0,0.00019973,2]
[314692835,1708531735797,-500.0,0.00019973,2]
[314692836,1708531735830,-605.11699951,0.00019973,2]
[314692837,1708531735860,-500.0,0.00019973,2]
[314692838,1708531735891,-151.20673677,0.00019973,2]
[314692839,1708531735921,-500.0,0.00019973,2]
[314692840,1708531735950,-3100.21,0.00019973,2]
[314692841,1708531735980,-1492.88,0.00019973,2]
[314692842,1708531736009,-3505.61,0.00019973,2]
[314692843,1708531736039,-500.0,0.00019973,2]
[314692844,1708531736070,-159.0,0.00019973,2]
[314692845,1708531736104,-500.0,0.00019973,2]
[314692846,1708531736134,-500.0,0.00019973,2]
[314692847,1708531736164,-500.0,0.00019973,2]
[314692848,1708531736194,-500.0,0.00019974,2]
[314692849,1708531736224,-486.45232516,0.00019998,3]
[314692850,1708531736255,-500.0,0.00019999,2]
[314692851,1708531736283,-29619.9489506,0.0002,2]
[314692852,1708531736312,-1500.0,0.0002,2]
[314692853,1708531736340,-1500.0,0.0002,2]
[314692854,1708531736369,-1500.0,0.0002,2]
[314692855,1708531736397,-1500.0,0.0002,2]
[314692856,1708531736426,-2000.0,0.0002,2]
[314692857,1708531736455,-169.64409843,0.0002,2]
[314692858,1708531736484,-190.06056111,0.0002,2]
[314692859,1708531736512,-153.0,0.0002,2]
[314692860,1708531736540,-153.0,0.0002,2]
[314692861,1708531736571,-153.0,0.0002,2]
[314692862,1708531736602,-306.0,0.0002,2]
[314692863,1708531736631,-200.4553765,0.0002,2]
[314692864,1708531736786,666.49,0.00019971,2]
[314692865,1708531737014,1409.0,0.00019688,3]
[314692866,1708531737201,500.0,0.00019697,2]
[314692867,1708531737333,500.0,0.00019971,2]
[314692868,1708531738278,1174.17,0.0001999,3]
[314692869,1708531739344,639.82470976,0.0001997,2]
[314692870,1708531741495,261.67910799,0.0001997,2]
[314692871,1708531741924,1590.19065373,0.0001997,2]
[314692872,1708531749016,1397.69,0.00019697,2]
[314692873,1708531749292,1397.69,0.00019971,2]
[314692874,1708531753192,500.0,0.00019696,2]
[314692875,1708531755254,1616.96,0.00019698,2]
[314692876,1708531755554,1616.96,0.00019972,2]
[314692881,1708531772799,538.35,0.00019697,2]
[314692882,1708531773104,538.35,0.00019971,2]
[314692883,1708531778550,610.95,0.00019696,2]
[314692884,1708531778970,610.95,0.0001997,2]
[314692887,1708531787879,12035.3,0.00019696,2]
[314692888,1708531788174,12035.3,0.0001997,2]
[314692890,1708531789427,500.0,0.00019697,2]
[314692891,1708531789547,500.0,0.00019971,2]
[314692892,1708531794382,847.57,0.00019971,2]
[314692893,1708531796298,703.88,0.00019697,2]
[314692894,1708531796755,703.88,0.00019971,2]
[314692895,1708531800498,500.0,0.00019697,2]
[314692896,1708531800916,500.0,0.00019971,2]
[314692897,1708531807420,1596.3,0.00019697,2]
[314692898,1708531807695,1596.3,0.00019971,2]
[314692901,1708531814949,500.0,0.00019697,2]
[314692902,1708531815618,500.0,0.00019971,2]
[314692903,1708531817170,500.0,0.00019697,2]
[314692904,1708531817464,500.0,0.00019971,2]
[314692905,1708531825485,1112.71,0.00019697,2]
[314692906,1708531825756,1112.71,0.00019971,2]
[314692941,1708531834967,-261.67910799,0.00020098,2]
[314692942,1708531834977,-639.82470976,0.00020099,2]
[314692943,1708531834986,-175.25,0.000201,2]
[314692944,1708531834996,-9691.76307252,0.00020146,2]
[314692945,1708531835005,-500.0,0.00020199,2]
[314692946,1708531835015,-978.47,0.00020236,3]
[314692947,1708531835024,-815.39,0.00020236,3]
[314692948,1708531835034,-1210.44,0.00020244,2]
[314692949,1708531835044,-546.0,0.00020244,2]
[314692950,1708531835054,-500.0,0.00020244,2]
[314692952,1708531835063,-610.95,0.00020244,2]
[314692954,1708531835073,-12035.3,0.00020244,2]
[314692956,1708531835084,-503.95,0.00020244,2]
[314692958,1708531835094,-500.0,0.00020245,2]
[314692960,1708531835104,-468.82059928,0.00020245,2]
[314692961,1708531835114,-1265.82,0.00020245,2]
[314692962,1708531835123,-500.0,0.00020245,2]
[314692963,1708531835136,-500.0,0.00020245,2]
[314692964,1708531835146,-1588.89,0.00020245,2]
[314692965,1708531835155,-883.69,0.00020245,2]
[314692966,1708531835164,-500.0,0.00020245,2]
[314692967,1708531835174,-500.0,0.00020245,2]
[314692968,1708531835183,-500.0,0.00020245,2]
[314692969,1708531835193,-500.0,0.00020245,2]
[314692970,1708531835203,-500.0,0.00020245,2]
[314692971,1708531835212,-869.1,0.00020245,2]
[314692972,1708531835222,-719.52,0.00020245,2]
[314692973,1708531835232,-4708.97,0.00020245,2]
[314692974,1708531835242,-3065.88,0.00020245,2]
[314692975,1708531835251,-500.0,0.00020245,2]
[314692976,1708531835261,-500.0,0.00020245,2]
[314692977,1708531835271,-2221.71,0.00020245,2]
[314692978,1708531835280,-341.52906192,0.00020245,2]
[314692979,1708531835290,-500.0,0.00020245,2]
[314692980,1708531835521,-1397.69,0.00020245,2]
[314692981,1708531835533,-538.35,0.00020245,2]
[314692982,1708531835543,-500.0,0.00020245,2]
[314692983,1708531835553,-703.88,0.00020245,2]
[314692984,1708531835562,-500.0,0.00020245,2]
[314692985,1708531835572,-1596.3,0.00020245,2]
[314692986,1708531835582,-500.0,0.00020245,2]
[314692987,1708531835591,-500.0,0.00020245,2]
[314692988,1708531835600,-1112.71,0.00020245,2]
[314692989,1708531835609,-500.0,0.00020246,2]
[314692990,1708531835619,-500.0,0.00020246,2]
[314692991,1708531835628,-359.57618202,0.00020246,2]
[314693024,1708531838252,500.0,0.00019698,2]
[314693039,1708531838376,-140.42381798,0.00020246,2]
[314693041,1708531838385,-632.77,0.00020246,2]
[314693043,1708531838397,-311.36235262,0.00020246,2]
[314693045,1708531838408,-188.63764738,0.00020246,2]
[314693047,1708531838417,-500.0,0.00020246,2]
[314693049,1708531838426,-282.07815365,0.00020246,2]
[314693066,1708531838543,500.0,0.00019699,2]
[314693095,1708531838826,500.0,0.00019873,2]
[314693127,1708531839110,500.0,0.00019971,2]
[314693132,1708531839151,500.0,0.00019698,2]
[314693154,1708531839340,500.0,0.00019972,2]
[314693158,1708531839377,500.0,0.00019972,2]
[314693184,1708531839616,500.0,0.00019973,2]
[314693210,1708531839856,500.0,0.00019999,2]
[314693268,1708531840425,500.0,0.00019697,2]
[314693310,1708531840818,500.0,0.00019971,2]
[314693355,1708531841589,-155.10081553,0.00020097,2]
[314693357,1708531841599,-500.0,0.00020138,2]
[314693359,1708531841610,-592.50184635,0.00020246,2]
[314693361,1708531841619,-421.42851843,0.00020246,2]
[314693365,1708531841650,-78.57148157,0.00020246,2]
[314693367,1708531841660,-500.0,0.00020246,2]
[314693369,1708531841670,-500.0,0.00020246,2]
[314693371,1708531841679,-500.0,0.00020246,2]
[314693373,1708531841689,-500.0,0.00020246,2]
[314693375,1708531841699,-500.0,0.00020246,2]
[314693377,1708531841709,-340.64692406,0.00020246,2]
[314693379,1708531841718,-500.0,0.00020246,2]
[314693381,1708531841728,-500.0,0.00020246,2]
[314693383,1708531841737,-713.44,0.00020246,2]
[314693385,1708531841747,-500.0,0.00020246,2]
[314693387,1708531841756,-500.0,0.00020246,2]
[314693389,1708531841766,-500.0,0.00020246,2]
[314693391,1708531841775,-500.0,0.00020246,2]
[314693393,1708531841785,-1455.17,0.00020246,2]
[314693395,1708531841794,-284.58343261,0.00020246,2]
[314693397,1708531841807,-102.79875198,0.00020246,2]
[314693399,1708531841820,-500.0,0.00020246,2]
[314693401,1708531841829,-500.0,0.00020246,2]
[314693403,1708531841838,-3.80586703,0.00020246,2]
[314693423,1708531843444,-496.19413297,0.00020246,2]
[314693424,1708531843454,-500.0,0.00020246,2]
[314693425,1708531843464,-708.58,0.00020246,2]
[314693426,1708531843474,-500.0,0.00020246,2]
[314693427,1708531843484,-500.0,0.00020246,2]